[Event "The Kvibergspelen 2023"]
[Site "Kviberg Park Hotel & Conference, Krutvagen 2, Gothenburg, Sweden"]
[Date "2023.09.15"]
[Round "1.17"]
[White "Helin, Mikael"]
[Black "Johansson, Gunnar"]
[Result "1-0"]
[TimeControl "15 minutes + 5 seconds per move from move one (Round 1 - 4) / 90 minutes + 30 seconds per move from move one (Round 5 - 8)"]
[WhiteTitle "CM"]
[WhiteFideId "1703838"]
[BlackFideId "1700715"]
[WhiteElo "1801"]
[BlackElo "2254"]

1. c4 {[%clk 00:15:07]} {[%emt 00:00:03]} Nf6 {[%clk 00:14:59]} {[%emt
00:00:10]} 2. Nc3 {[%clk 00:15:08]} {[%emt 00:00:05]} g6 {[%clk 00:14:01]}
{[%emt 00:01:03]} 3. g3 {[%clk 00:14:57]} {[%emt 00:00:16]} Bg7 {[%clk
00:13:58]} {[%emt 00:00:07]} 4. Bg2 {[%clk 00:15:00]} {[%emt 00:00:02]} O-O
{[%clk 00:13:57]} {[%emt 00:00:06]} 5. e4 {[%clk 00:15:02]} {[%emt 00:00:04]}
d6 {[%clk 00:13:56]} {[%emt 00:00:05]} 6. h3 {[%clk 00:15:03]} {[%emt
00:00:04]} c5 {[%clk 00:13:42]} {[%emt 00:00:19]} 7. Nge2 {[%clk 00:15:04]}
{[%emt 00:00:04]} Nc6 {[%clk 00:13:44]} {[%emt 00:00:05]} 8. O-O {[%clk
00:14:57]} {[%emt 00:00:11]} Ne8 {[%clk 00:13:06]} {[%emt 00:00:42]} 9. f4
{[%clk 00:14:50]} {[%emt 00:00:12]} e6 {[%clk 00:12:29]} {[%emt 00:00:41]} 10.
Kh2 {[%clk 00:14:39]} {[%emt 00:00:18]} f5 {[%emt 00:00:24]} 11. d3 {[%emt
00:00:02]} Nf6 {[%clk 00:11:21]} {[%emt 00:00:52]} 12. Rb1 {[%clk 00:14:42]}
{[%emt 00:00:06]} Qd7 {[%clk 00:09:03]} {[%emt 00:02:24]} 13. a3 {[%clk
00:14:24]} {[%emt 00:00:24]} b6 {[%clk 00:09:00]} {[%emt 00:00:08]} 14. Ng1
{[%clk 00:12:42]} {[%emt 00:01:46]} Bb7 {[%clk 00:08:51]} {[%emt 00:00:14]} 15.
Nf3 {[%clk 00:12:17]} {[%emt 00:00:30]} Rae8 {[%clk 00:08:43]} {[%emt
00:00:13]} 16. exf5 {[%clk 00:10:56]} {[%emt 00:01:25]} gxf5 {[%clk 00:08:41]}
{[%emt 00:00:08]} 17. Ng5 {[%clk 00:10:13]} {[%emt 00:00:48]} h6 {[%clk
00:08:22]} {[%emt 00:00:24]} 18. Nf3 {[%clk 00:10:17]} {[%emt 00:00:01]} e5
{[%clk 00:08:16]} {[%emt 00:00:11]} 19. Nh4 {[%clk 00:10:05]} {[%emt 00:00:17]}
e4 {[%clk 00:07:47]} {[%emt 00:00:34]} 20. Ng6 {[%clk 00:09:44]} {[%emt
00:00:26]} Rf7 {[%clk 00:07:44]} {[%emt 00:00:08]} 21. Nd5 {[%clk 00:07:10]}
{[%emt 00:02:38]} Nxd5 {[%clk 00:07:31]} {[%emt 00:00:19]} 22. cxd5 {[%clk
00:07:14]} {[%emt 00:00:02]} Nd4 {[%clk 00:07:34]} {[%emt 00:00:01]} 23. dxe4
{[%clk 00:07:13]} {[%emt 00:00:06]} fxe4 {[%clk 00:07:34]} {[%emt 00:00:03]} 24.
g4 {[%clk 00:05:26]} {[%emt 00:01:53]} Bxd5 {[%clk 00:07:20]} {[%emt 00:00:20]}
25. f5 {[%clk 00:05:09]} {[%emt 00:00:22]} Bb3 {[%clk 00:06:44]} {[%emt
00:00:41]} 26. Qe1 {[%clk 00:04:36]} {[%emt 00:00:39]} Bc2 {[%clk 00:05:36]}
{[%emt 00:01:11]} 27. Qh4 {[%clk 00:04:23]} {[%emt 00:00:19]} Nf3+ {[%clk
00:04:21]} {[%emt 00:01:20]} 28. Rxf3 {[%clk 00:02:24]} {[%emt 00:02:04]} exf3
{[%clk 00:04:24]} {[%emt 00:00:02]} 29. Bxf3 {[%clk 00:02:28]} {[%emt
00:00:01]} d5 {[%clk 00:03:54]} {[%emt 00:00:35]} 30. Bxh6 {[%clk 00:02:26]}
{[%emt 00:00:07]} Bxh6 {[%clk 00:03:57]} 31. Qxh6 {[%clk 00:02:08]} {[%emt
00:00:24]} Rh7 {[%clk 00:04:01]} {[%emt 00:00:01]} 32. Qg5 {[%clk 00:02:07]}
{[%emt 00:00:05]} Qg7 {[%clk 00:03:41]} {[%emt 00:00:25]} 33. Bxd5+ {[%clk
00:01:48]} {[%emt 00:00:25]} Qf7 {[%clk 00:03:24]} {[%emt 00:00:23]} 34. Ne5+
{[%clk 00:01:18]} {[%emt 00:00:34]} Kf8 {[%clk 00:03:19]} {[%emt 00:00:10]} 35.
Bxf7 {[%emt 00:00:51]} 1-0

[Event "The Kvibergspelen 2023"]
[Site "Kviberg Park Hotel & Conference, Krutvagen 2, Gothenburg, Sweden"]
[Date "2023.09.15"]
[Round "1.18"]
[White "Cederstam, Carl"]
[Black "Ramsdal, Mikkel"]
[Result "1-0"]
[TimeControl "15 minutes + 5 seconds per move from move one (Round 1 - 4) / 90 minutes + 30 seconds per move from move one (Round 5 - 8)"]
[WhiteTitle "FM"]
[WhiteFideId "1713329"]
[BlackFideId "1438484"]
[WhiteElo "2232"]
[BlackElo "1777"]

1. Nf3 {[%clk 00:14:53]} {[%emt 00:00:16]} d5 {[%clk 00:14:57]} {[%emt
00:00:13]} 2. e3 {[%clk 00:14:54]} {[%emt 00:00:04]} c5 {[%clk 00:14:59]}
{[%emt 00:00:04]} 3. b3 {[%clk 00:14:29]} {[%emt 00:00:29]} Nc6 {[%clk
00:14:59]} {[%emt 00:00:05]} 4. Bb2 {[%clk 00:14:18]} {[%emt 00:00:16]} Nf6
{[%clk 00:14:53]} {[%emt 00:00:10]} 5. Bb5 {[%clk 00:14:07]} {[%emt 00:00:17]}
Bg4 {[%clk 00:14:35]} {[%emt 00:00:23]} 6. h3 {[%clk 00:14:09]} {[%emt
00:00:03]} Bh5 {[%clk 00:14:38]} {[%emt 00:00:02]} 7. g4 {[%clk 00:13:15]}
{[%emt 00:00:59]} Bg6 {[%clk 00:14:40]} {[%emt 00:00:04]} 8. Ne5 {[%clk
00:13:02]} {[%emt 00:00:17]} Qc7 {[%clk 00:14:38]} {[%emt 00:00:07]} 9. h4
{[%clk 00:10:57]} {[%emt 00:02:10]} h6 {[%clk 00:11:48]} {[%emt 00:02:55]} 10.
Nxg6 {[%clk 00:10:38]} {[%emt 00:00:24]} fxg6 {[%clk 00:11:51]} {[%emt
00:00:03]} 11. Qf3 {[%clk 00:09:05]} {[%emt 00:01:36]} O-O-O {[%clk 00:08:38]}
{[%emt 00:03:19]} 12. g5 {[%clk 00:05:35]} {[%emt 00:03:35]} hxg5 {[%clk
00:08:33]} {[%emt 00:00:10]} 13. hxg5 {[%clk 00:05:39]} {[%emt 00:00:02]} Rxh1+
{[%clk 00:08:33]} {[%emt 00:00:05]} 14. Qxh1 {[%clk 00:05:42]} {[%emt
00:00:02]} Ne4 {[%clk 00:08:10]} {[%emt 00:00:28]} 15. Qh3+ {[%clk 00:05:24]}
{[%emt 00:00:22]} Kb8 {[%clk 00:08:03]} {[%emt 00:00:12]} 16. f4 {[%clk
00:04:49]} {[%emt 00:00:39]} Nb4 {[%clk 00:07:30]} {[%emt 00:00:38]} 17. Be5
{[%clk 00:04:21]} {[%emt 00:00:33]} Nxc2+ {[%clk 00:06:49]} {[%emt 00:00:47]}
18. Kd1 {[%clk 00:04:25]} {[%emt 00:00:02]} Qxe5 {[%clk 00:05:39]} {[%emt
00:01:14]} 19. fxe5 {[%clk 00:04:28]} {[%emt 00:00:02]} Nf2+ {[%clk 00:05:40]}
{[%emt 00:00:04]} 20. Kxc2 {[%clk 00:04:31]} {[%emt 00:00:02]} Nxh3 {[%clk
00:05:42]} {[%emt 00:00:03]} 21. e6 {[%clk 00:03:58]} {[%emt 00:00:39]} Rd6
{[%clk 00:05:20]} {[%emt 00:00:26]} 22. Nc3 {[%clk 00:03:50]} {[%emt 00:00:13]}
a6 {[%clk 00:04:05]} {[%emt 00:01:20]} 23. Rf1 {[%clk 00:02:56]} {[%emt
00:00:59]} Rd8 {[%clk 00:02:35]} {[%emt 00:01:35]} 24. Bd7 {[%clk 00:02:58]}
{[%emt 00:00:04]} d4 {[%clk 00:01:42]} {[%emt 00:00:57]} 25. Ne4 {[%clk
00:02:50]} {[%emt 00:00:13]} dxe3 {[%clk 00:01:31]} {[%emt 00:00:16]} 26. dxe3
{[%clk 00:02:54]} {[%emt 00:00:01]} Kc7 {[%clk 00:01:00]} {[%emt 00:00:37]} 27.
Rh1 {[%clk 00:02:47]} {[%emt 00:00:11]} Rxd7 {[%clk 00:00:38]} {[%emt
00:00:27]} 28. exd7 {[%clk 00:02:50]} {[%emt 00:00:03]} Kxd7 {[%clk 00:00:42]}
{[%emt 00:00:01]} 29. Rxh3 {[%clk 00:02:42]} {[%emt 00:00:13]} Kc6 {[%clk
00:00:42]} {[%emt 00:00:04]} 30. Rh8 {[%clk 00:02:44]} {[%emt 00:00:02]} Kd5
{[%clk 00:00:44]} {[%emt 00:00:04]} 31. Nc3+ {[%clk 00:02:48]} {[%emt
00:00:02]} 1-0

[Event "The Kvibergspelen 2023"]
[Site "Kviberg Park Hotel & Conference, Krutvagen 2, Gothenburg, Sweden"]
[Date "2023.09.15"]
[Round "1.19"]
[White "Torkkeli, Ted"]
[Black "Hansen, Lars"]
[Result "0-1"]
[TimeControl "15 minutes + 5 seconds per move from move one (Round 1 - 4) / 90 minutes + 30 seconds per move from move one (Round 5 - 8)"]
[WhiteFideId "1737724"]
[BlackFideId "1402528"]
[WhiteElo "1777"]
[BlackElo "2188"]

1. e4 {[%clk 00:15:09]} e6 {[%clk 00:15:07]} {[%emt 00:00:03]} 2. d4 {[%clk
00:15:12]} {[%emt 00:00:02]} d5 {[%clk 00:15:11]} {[%emt 00:00:01]} 3. Nd2
{[%clk 00:15:15]} {[%emt 00:00:03]} Nf6 {[%clk 00:15:15]} 4. e5 {[%clk
00:15:17]} {[%emt 00:00:02]} Nfd7 {[%clk 00:15:18]} {[%emt 00:00:01]} 5. Bd3
{[%clk 00:15:21]} {[%emt 00:00:02]} c5 {[%clk 00:15:22]} {[%emt 00:00:01]} 6.
c3 {[%clk 00:15:24]} {[%emt 00:00:02]} Nc6 {[%clk 00:15:26]} {[%emt 00:00:01]}
7. Ne2 {[%clk 00:15:26]} {[%emt 00:00:03]} cxd4 {[%clk 00:15:27]} {[%emt
00:00:03]} 8. cxd4 {[%clk 00:15:28]} {[%emt 00:00:04]} f6 {[%clk 00:15:30]}
{[%emt 00:00:01]} 9. exf6 {[%clk 00:15:28]} {[%emt 00:00:05]} Nxf6 {[%clk
00:15:33]} {[%emt 00:00:03]} 10. O-O {[%clk 00:15:18]} {[%emt 00:00:14]} Bd6
{[%clk 00:15:36]} {[%emt 00:00:02]} 11. Nf3 {[%clk 00:15:14]} {[%emt 00:00:09]}
Qc7 {[%clk 00:15:39]} {[%emt 00:00:02]} 12. a3 {[%emt 00:00:30]} O-O {[%clk
00:15:37]} 13. Re1 {[%clk 00:14:06]} {[%emt 00:00:55]} Bd7 {[%clk 00:15:03]}
{[%emt 00:00:39]} 14. Ng3 {[%clk 00:14:02]} {[%emt 00:00:09]} Kh8 {[%emt
00:02:03]} 15. Bd2 {[%emt 00:02:07]} Rae8 {[%clk 00:12:05]} {[%emt 00:00:23]}
16. Bc3 {[%clk 00:11:56]} {[%emt 00:00:52]} Qb6 {[%clk 00:09:31]} {[%emt
00:02:39]} 17. Qd2 {[%emt 00:02:16]} Ng4 {[%clk 00:07:51]} {[%emt 00:01:42]} 18.
Qg5 {[%clk 00:09:02]} {[%emt 00:00:50]} e5 {[%clk 00:05:32]} {[%emt 00:03:25]}
19. h3 {[%clk 00:07:11]} Nxf2 {[%clk 00:05:32]} {[%emt 00:01:02]} 20. Kxf2
{[%clk 00:06:40]} e4 {[%clk 00:05:29]} {[%emt 00:00:42]} 21. Qxd5 {[%clk
00:05:45]} Bxg3+ {[%clk 00:04:00]} {[%emt 00:02:34]} 22. Kxg3 {[%clk 00:05:47]}
Qc7+ {[%emt 00:01:50]} 23. Ne5 {[%clk 00:04:56]} {[%emt 00:00:03]} Nxe5 {[%clk
00:03:00]} {[%emt 00:00:17]} 24. dxe5 {[%emt 00:00:21]} exd3 {[%emt 00:00:27]}
25. Qxd3 {[%emt 00:00:21]} Bc6 {[%emt 00:00:34]} 26. Qd6 {[%emt 00:01:37]} Qf7
{[%emt 00:01:01]} 27. Rf1 {[%clk 00:02:59]} {[%emt 00:00:02]} Qxf1 {[%clk
00:01:08]} {[%emt 00:00:06]} 28. Rxf1 {[%clk 00:03:02]} {[%emt 00:00:02]} Rxf1
{[%clk 00:01:12]} {[%emt 00:00:01]} 29. e6 {[%clk 00:02:37]} Rf5 {[%clk
00:01:06]} {[%emt 00:00:40]} 30. e7 {[%clk 00:01:53]} Rg5+ {[%clk 00:00:51]}
{[%emt 00:01:08]} 31. Kh4 {[%clk 00:01:42]} Rxg2 {[%clk 00:00:47]} {[%emt
00:00:27]} 32. Qe5 {[%clk 00:00:42]} h6 {[%clk 00:00:43]} {[%emt 00:01:13]} 33.
b4 {[%clk 00:00:30]} a6 {[%clk 00:00:41]} {[%emt 00:00:24]} 34. Bd4 {[%clk
00:00:29]} Rg5 {[%clk 00:00:26]} {[%emt 00:00:26]} 35. Qe3 {[%clk 00:00:20]}
Kh7 {[%clk 00:00:22]} {[%emt 00:00:23]} 36. Bc5 {[%clk 00:00:20]} Rg2 {[%clk
00:00:11]} {[%emt 00:00:21]} 37. Qe6 {[%clk 00:00:19]} g5+ {[%clk 00:00:10]}
{[%emt 00:00:12]} 38. Kh5 {[%clk 00:00:22]} Bf3+ {[%clk 00:00:14]} {[%emt
00:00:03]} 0-1

[Event "The Kvibergspelen 2023"]
[Site "Kviberg Park Hotel & Conference, Krutvagen 2, Gothenburg, Sweden"]
[Date "2023.09.15"]
[Round "1.20"]
[White "Nygren, Kim"]
[Black "Lyngsjo, Gert"]
[Result "1-0"]
[TimeControl "15 minutes + 5 seconds per move from move one (Round 1 - 4) / 90 minutes + 30 seconds per move from move one (Round 5 - 8)"]
[WhiteTitle "CM"]
[WhiteFideId "1706136"]
[BlackFideId "1702319"]
[WhiteElo "2171"]
[BlackElo "1774"]

1. e4 {[%clk 00:15:06]} {[%emt 00:00:03]} c6 {[%clk 00:15:05]} {[%emt
00:00:05]} 2. d4 {[%clk 00:15:06]} {[%emt 00:00:05]} d5 {[%clk 00:15:07]}
{[%emt 00:00:04]} 3. e5 {[%clk 00:14:55]} {[%emt 00:00:16]} Bf5 {[%clk
00:15:07]} {[%emt 00:00:05]} 4. Nf3 {[%clk 00:14:18]} {[%emt 00:00:41]} e6
{[%clk 00:14:52]} {[%emt 00:00:20]} 5. Be2 {[%clk 00:14:20]} {[%emt 00:00:02]}
Ne7 {[%clk 00:14:37]} {[%emt 00:00:21]} 6. Be3 {[%clk 00:14:21]} {[%emt
00:00:04]} Nd7 {[%clk 00:13:50]} {[%emt 00:00:51]} 7. O-O {[%clk 00:14:21]}
{[%emt 00:00:06]} c5 {[%clk 00:12:53]} {[%emt 00:01:02]} 8. Nc3 {[%clk
00:14:09]} {[%emt 00:00:17]} cxd4 {[%clk 00:11:57]} {[%emt 00:01:00]} 9. Nb5
{[%clk 00:12:34]} {[%emt 00:01:40]} Nc6 {[%clk 00:11:37]} {[%emt 00:00:26]} 10.
Nbxd4 {[%clk 00:12:06]} {[%emt 00:00:33]} Ndxe5 {[%clk 00:10:55]} {[%emt
00:00:47]} 11. Nxe5 {[%clk 00:12:00]} {[%emt 00:00:11]} Nxe5 {[%clk 00:10:53]}
{[%emt 00:00:08]} 12. Bb5+ {[%clk 00:12:01]} {[%emt 00:00:03]} Nd7 {[%clk
00:10:27]} {[%emt 00:00:31]} 13. Nxf5 {[%clk 00:12:02]} {[%emt 00:00:04]} exf5
{[%clk 00:10:28]} {[%emt 00:00:03]} 14. Qxd5 {[%clk 00:12:03]} {[%emt
00:00:05]} a6 {[%clk 00:07:14]} {[%emt 00:03:20]} 15. Rfe1 {[%clk 00:11:06]}
{[%emt 00:01:01]} Be7 {[%clk 00:06:55]} {[%emt 00:00:24]} 16. Bc5 {[%clk
00:10:40]} {[%emt 00:00:31]} axb5 {[%clk 00:06:33]} {[%emt 00:00:27]} 17. Rxe7+
{[%clk 00:10:36]} {[%emt 00:00:09]} Qxe7 {[%clk 00:06:36]} {[%emt 00:00:02]} 18.
Bxe7 {[%clk 00:10:37]} {[%emt 00:00:04]} Kxe7 {[%clk 00:06:40]} {[%emt
00:00:01]} 19. Re1+ {[%clk 00:10:39]} {[%emt 00:00:03]} Kf6 {[%clk 00:04:29]}
{[%emt 00:02:16]} 20. Qd6+ {[%clk 00:10:36]} {[%emt 00:00:08]} Kg5 {[%clk
00:04:25]} {[%emt 00:00:09]} 21. Qxd7 {[%clk 00:10:37]} {[%emt 00:00:04]} Rad8
{[%clk 00:04:19]} {[%emt 00:00:11]} 22. Qxf7 {[%clk 00:10:33]} {[%emt
00:00:08]} g6 {[%clk 00:04:01]} {[%emt 00:00:24]} 23. Qe7+ {[%clk 00:10:29]}
{[%emt 00:00:09]} Kh6 {[%clk 00:04:01]} {[%emt 00:00:05]} 24. Qh4+ {[%clk
00:10:26]} {[%emt 00:00:08]} Kg7 {[%clk 00:03:59]} {[%emt 00:00:07]} 25. Re7+
{[%clk 00:10:21]} {[%emt 00:00:10]} Kg8 {[%clk 00:03:52]} {[%emt 00:00:12]} 26.
h3 {[%clk 00:10:22]} {[%emt 00:00:03]} b6 {[%clk 00:02:52]} {[%emt 00:01:06]}
27. Qf6 {[%clk 00:15:05]} 1-0

[Event "The Kvibergspelen 2023"]
[Site "Kviberg Park Hotel & Conference, Krutvagen 2, Gothenburg, Sweden"]
[Date "2023.09.15"]
[Round "2.1"]
[White "Hansen, Sune Berg"]
[Black "Lundstedt, Peter"]
[Result "1-0"]
[TimeControl "15 minutes + 5 seconds per move from move one (Round 1 - 4) / 90 minutes + 30 seconds per move from move one (Round 5 - 8)"]
[WhiteTitle "GM"]
[WhiteFideId "1400266"]
[BlackFideId "1718444"]
[WhiteElo "2512"]
[BlackElo "2099"]

1. Nf3 {[%clk 00:15:08]} d5 {[%clk 00:15:09]} {[%emt 00:00:05]} 2. g3 {[%clk
00:15:11]} Nf6 {[%clk 00:15:12]} {[%emt 00:00:01]} 3. Bg2 {[%clk 00:15:13]}
{[%emt 00:00:02]} e6 {[%clk 00:15:15]} {[%emt 00:00:05]} 4. O-O {[%clk
00:14:56]} {[%emt 00:00:19]} Be7 {[%clk 00:15:17]} {[%emt 00:00:02]} 5. d3
{[%clk 00:14:56]} {[%emt 00:00:06]} O-O {[%clk 00:15:18]} {[%emt 00:00:04]} 6.
Bf4 {[%clk 00:14:56]} {[%emt 00:00:05]} b6 {[%clk 00:14:48]} {[%emt 00:00:35]}
7. e4 {[%clk 00:14:45]} {[%emt 00:00:16]} dxe4 {[%clk 00:14:28]} {[%emt
00:00:25]} 8. dxe4 {[%clk 00:14:48]} {[%emt 00:00:02]} Ba6 {[%clk 00:12:20]}
{[%emt 00:02:14]} 9. Re1 {[%clk 00:14:09]} {[%emt 00:00:43]} Qc8 {[%clk
00:09:57]} {[%emt 00:02:28]} 10. Nc3 {[%clk 00:12:48]} {[%emt 00:01:26]} Rd8
{[%clk 00:09:31]} {[%emt 00:00:30]} 11. Nd2 {[%clk 00:10:55]} {[%emt 00:01:59]}
Bb7 {[%clk 00:08:36]} {[%emt 00:01:00]} 12. Qe2 {[%clk 00:08:19]} {[%emt
00:02:41]} Nc6 {[%clk 00:07:44]} {[%emt 00:00:57]} 13. Nb3 {[%clk 00:07:40]}
{[%emt 00:00:44]} a5 {[%clk 00:06:26]} {[%emt 00:01:24]} 14. e5 {[%clk
00:06:32]} {[%emt 00:01:13]} Nd7 {[%clk 00:06:21]} {[%emt 00:00:10]} 15. a4
{[%clk 00:05:54]} {[%emt 00:00:42]} Nc5 {[%clk 00:06:10]} {[%emt 00:00:16]} 16.
Nxc5 {[%clk 00:05:24]} {[%emt 00:00:35]} Bxc5 {[%clk 00:06:13]} {[%emt
00:00:03]} 17. Nb5 {[%clk 00:05:07]} {[%emt 00:00:22]} Nd4 {[%clk 00:05:45]}
{[%emt 00:00:32]} 18. Nxd4 {[%clk 00:05:10]} {[%emt 00:00:02]} Bxd4 {[%clk
00:05:40]} {[%emt 00:00:11]} 19. c3 {[%clk 00:04:12]} {[%emt 00:01:02]} Bxg2
{[%clk 00:05:34]} {[%emt 00:00:11]} 20. Kxg2 {[%clk 00:04:10]} {[%emt
00:00:06]} Bc5 {[%clk 00:05:37]} {[%emt 00:00:04]} 21. Qf3 {[%clk 00:03:29]}
{[%emt 00:00:47]} Qa6 {[%clk 00:03:39]} {[%emt 00:02:01]} 22. Rad1 {[%clk
00:03:08]} {[%emt 00:00:26]} Rac8 {[%clk 00:02:46]} {[%emt 00:00:59]} 23. Bg5
{[%clk 00:02:30]} {[%emt 00:00:43]} Rxd1 {[%clk 00:02:33]} {[%emt 00:00:17]} 24.
Rxd1 {[%clk 00:02:33]} h6 {[%clk 00:02:23]} {[%emt 00:00:16]} 25. Rd7 {[%clk
00:02:12]} {[%emt 00:00:27]} Qa8 {[%clk 00:02:06]} {[%emt 00:00:21]} 26. Qxa8
{[%clk 00:01:55]} {[%emt 00:00:22]} Rxa8 {[%clk 00:02:10]} 27. Bd8 {[%clk
00:01:55]} {[%emt 00:00:05]} Kf8 {[%clk 00:01:24]} {[%emt 00:00:52]} 28. Bxc7
{[%clk 00:01:50]} {[%emt 00:00:09]} Ke8 {[%clk 00:01:28]} {[%emt 00:00:01]} 29.
Rd3 {[%clk 00:01:37]} {[%emt 00:00:19]} Rc8 {[%clk 00:01:18]} {[%emt 00:00:14]}
30. Bd6 {[%clk 00:01:40]} {[%emt 00:00:02]} Rd8 {[%clk 00:01:13]} {[%emt
00:00:11]} 31. Kf3 {[%clk 00:01:26]} {[%emt 00:00:19]} Bxd6 {[%clk 00:01:11]}
{[%emt 00:00:07]} 32. exd6 {[%clk 00:01:29]} {[%emt 00:00:02]} Kd7 {[%clk
00:01:15]} 33. Ke4 {[%clk 00:01:17]} {[%emt 00:00:16]} Rc8 {[%clk 00:01:16]}
{[%emt 00:00:04]} 34. Rd4 {[%clk 00:00:53]} {[%emt 00:00:30]} g5 {[%clk
00:00:58]} {[%emt 00:00:23]} 35. Ke5 {[%clk 00:00:54]} {[%emt 00:00:03]} Rc5+
{[%clk 00:00:56]} {[%emt 00:00:08]} 36. Ke4 {[%clk 00:00:35]} {[%emt 00:00:24]}
f5+ {[%clk 00:00:46]} {[%emt 00:00:14]} 37. Ke3 {[%clk 00:00:34]} {[%emt
00:00:06]} Re5+ {[%clk 00:00:34]} {[%emt 00:00:17]} 38. Kd2 {[%clk 00:00:31]}
{[%emt 00:00:08]} Rc5 {[%clk 00:00:27]} {[%emt 00:00:13]} 39. h4 {[%clk
00:00:32]} {[%emt 00:00:04]} Rc6 {[%clk 00:00:30]} {[%emt 00:00:02]} 40. hxg5
{[%clk 00:00:35]} {[%emt 00:00:01]} hxg5 {[%clk 00:00:34]} {[%emt 00:00:02]} 41.
Kd3 {[%clk 00:00:31]} {[%emt 00:00:08]} Rxd6 {[%clk 00:00:37]} {[%emt
00:00:02]} 42. Rxd6+ {[%clk 00:00:32]} {[%emt 00:00:05]} Kxd6 {[%clk 00:00:40]}
{[%emt 00:00:02]} 43. Kc4 {[%clk 00:00:31]} {[%emt 00:00:05]} e5 {[%clk
00:00:24]} {[%emt 00:00:21]} 44. b4 {[%clk 00:00:35]} {[%emt 00:00:01]} Kc6
{[%clk 00:00:10]} {[%emt 00:00:19]} 45. f3 {[%clk 00:00:39]} {[%emt 00:00:01]}
Kd6 {[%clk 00:00:07]} {[%emt 00:00:09]} 46. Kb5 {[%clk 00:00:25]} {[%emt
00:00:19]} e4 {[%clk 00:00:06]} {[%emt 00:00:05]} 47. fxe4 {[%clk 00:00:28]}
{[%emt 00:00:02]} fxe4 {[%clk 00:00:00]} {[%emt 00:00:06]} 1-0

[Event "The Kvibergspelen 2023"]
[Site "Kviberg Park Hotel & Conference, Krutvagen 2, Gothenburg, Sweden"]
[Date "2023.09.15"]
[Round "2.2"]
[White "Wahlstrom, Lennart"]
[Black "Holm, Kristian Stuvik"]
[Result "0-1"]
[TimeControl "15 minutes + 5 seconds per move from move one (Round 1 - 4) / 90 minutes + 30 seconds per move from move one (Round 5 - 8)"]
[BlackTitle "IM"]
[WhiteFideId "1706829"]
[BlackFideId "1508083"]
[WhiteElo "2093"]
[BlackElo "2488"]

1. e4 {[%clk 00:15:06]} {[%emt 00:00:04]} c5 {[%clk 00:15:06]} {[%emt
00:00:05]} 2. Nf3 {[%clk 00:15:09]} Nc6 {[%clk 00:15:06]} {[%emt 00:00:08]} 3.
d4 {[%clk 00:15:12]} cxd4 {[%clk 00:15:09]} {[%emt 00:00:01]} 4. Nxd4 {[%clk
00:15:15]} {[%emt 00:00:02]} g6 {[%clk 00:15:11]} {[%emt 00:00:03]} 5. Be2
{[%clk 00:15:10]} {[%emt 00:00:09]} Bg7 {[%clk 00:15:15]} {[%emt 00:00:03]} 6.
Nb3 {[%clk 00:15:13]} {[%emt 00:00:01]} Nf6 {[%clk 00:15:17]} {[%emt 00:00:02]}
7. Nc3 {[%clk 00:15:17]} {[%emt 00:00:02]} O-O {[%clk 00:15:19]} {[%emt
00:00:03]} 8. O-O {[%clk 00:15:15]} {[%emt 00:00:07]} a6 {[%clk 00:15:00]}
{[%emt 00:00:24]} 9. Be3 {[%clk 00:14:51]} {[%emt 00:00:29]} d6 {[%clk
00:14:46]} {[%emt 00:00:20]} 10. Kh1 {[%clk 00:13:37]} {[%emt 00:01:17]} b5
{[%clk 00:14:44]} {[%emt 00:00:07]} 11. a4 {[%clk 00:13:29]} {[%emt 00:00:13]}
b4 {[%clk 00:13:59]} {[%emt 00:00:51]} 12. Nd5 {[%clk 00:13:32]} {[%emt
00:00:02]} Nd7 {[%clk 00:13:57]} {[%emt 00:00:07]} 13. Nd4 {[%clk 00:12:34]}
{[%emt 00:01:03]} Bb7 {[%clk 00:13:42]} {[%emt 00:00:21]} 14. Nxc6 {[%clk
00:11:33]} {[%emt 00:01:05]} Bxc6 {[%clk 00:13:41]} {[%emt 00:00:06]} 15. Bd4
{[%clk 00:11:11]} {[%emt 00:00:26]} Bxd4 {[%clk 00:12:32]} {[%emt 00:01:15]} 16.
Qxd4 {[%clk 00:11:13]} {[%emt 00:00:03]} a5 {[%clk 00:11:36]} {[%emt 00:01:01]}
17. Bc4 {[%clk 00:08:47]} {[%emt 00:02:30]} Rc8 {[%clk 00:09:54]} {[%emt
00:01:48]} 18. Ne3 {[%clk 00:06:37]} {[%emt 00:02:14]} Qb6 {[%clk 00:09:07]}
{[%emt 00:00:53]} 19. Qxb6 {[%clk 00:05:19]} {[%emt 00:01:23]} Nxb6 {[%clk
00:09:09]} {[%emt 00:00:04]} 20. Bd3 {[%clk 00:04:31]} {[%emt 00:00:52]} Nxa4
{[%clk 00:08:23]} {[%emt 00:00:52]} 21. Nd5 {[%clk 00:04:23]} {[%emt 00:00:11]}
Rfe8 {[%clk 00:07:40]} {[%emt 00:00:49]} 0-1